Workbook

Sheet Геодезия
A1: Приложение 1
G2: к ценовому предложению
A3: Смета № 1
A4: Наименование этапа и вида изыскательских работ
A5: Наименование объекта
A6: Стадия проектирования
A7: Наименование проектной (изыскательской) организации
A8: Наименование организации заказчика
A9: Адрес, местоположение объекта или земельного участка:
A10: № п.п | B10: Виды и объемы работ | F10: №№ ч., Гл., таб.СУБЦ-2004 | I10: Цена, руб | J10: Стоимость, руб
A11: I | B11: Полевые работы
B12: Создание плановой опорной сети, II разряд, кат. II, с исп. спутниковых геодезических систем | F12: т.8, §3
B13: 3 | C13: репер | F13: К= | G13: 1.3 | H13: т.8, прим.2 | I13: 6426 | J13: =ROUND(I13*B13*G13,0) -> 25061
B14: Создание высотной опорной сети, кат. II, без закладки центров | F14: т.8, §4
B15: 3 | F15: К= | G15: 0.4 | H15: т.8, прим.1 | I15: 1897 | J15: =B15*G15*I15 -> 2276.4
B16: Создание инженерно-топографических планов масштаба М 1:500 кат.II | F16: т.9, §5
B17: 6 | C17: га | F17: К= | G17: 1.55 | H17: т.9, прим. 4 | I17: 4632 | J17: =ROUND(I17*B17*G17,0) -> 43078
B18: Разбивка отдельных точек | F18: т.48, п.2
B19: 5 | C19: точка | F19: К= | G19: 0.5 | H19: т.48, п.2, прим.1 | I19: 127 | J19: =ROUND(I19*B19*G19,0) -> 318
B20: Планово-высотная привязка отдельных точек | F20: т.48, п.2
B21: =B19 -> 5 | C21: точка | I21: 127 | J21: =ROUND(I21*B21,0) -> 635
B22: Содержание базы партии | F22: т.82, §4 | H22: т.101п.1
B23: 0.35 | C23: месяц | I23: 67500 | J23: =B23*I23 -> 23625
B24: Внутренний транспорт | F24: т.4, п.3
B25: =SUM(J13:J23) -> 94993.4 | I25: 0.125 | J25: =ROUND(I25*B25,0) -> 11874
B26: Организация и ликвидация работ | F26: ОУ, п.13 прим.1
B27: =B25+J25 -> 106867.4 | F27: К= | G27: 2.5 | H27: приложение 5 | I27: 0.06 | J27: =ROUND(B27*I27*G27,0) -> 16030 | L27: добавить внутренний транспорт и взять 6%
B29: Итого сметная стоимость полевых работ | J29: =SUM(J12:J27) -> 122897.4
B30: Удорожание сметной стоимости полевых работ с районным коэффициентом 1,4 (ОУ п.8 п "д") | J30: =ROUND(J29*0.4,0) -> 49159
B31: Удорожание сметной стоимости полевых работ с льготным коэффициентом 1,25 (ОУ п.8 п "е") | J31: =J29*0.25 -> 30724.35
B32: Итого сметная стоимость полевых работ | J32: =SUM(J29:J31) -> 202780.75
A34: II | B34: Камеральные работы
B35: Создание плановой опорной сети, II разряд, кат. II, с исп. спутниковых геодезических систем | F35: т.8, §3
B36: =B13 -> 3 | C36: км | F36: К= | G36: 1.3 | H36: т.8, прим.2 | I36: 2538 | J36: =ROUND(I36*B36*G36*G37*G38,0) -> 13066
F37: К= | G37: 1.1 | H37: ОУ п.15б
F38: К= | G38: 1.2 | H38: ОУ п. 15д
B39: Создание высотной опорной сети, кат. II | F39: т.8, §4
B40: =B15 -> 3 | C40: дм | F40: К= | G40: 1.1 | H40: ОУ п.15б | I40: 428 | J40: =ROUND(I40*B40*G40*G41,0) -> 1695
F41: К= | G41: 1.2 | H41: ОУ п. 15д
B42: Создание инженерно-топографических планов масштаба М 1:500 кат.II | F42: т.9, §5
B43: =B17 -> 6 | C43: га | F43: К= | G43: 1.55 | H43: т.9, прим. 4 | I43: 1938 | J43: =ROUND(I43*B43*G43*G44*G45,0) -> 34695
F44: К= | G44: 1.1 | H44: ОУ п.15б
F45: К= | G45: 1.75 | H45: ОУ п. 15е
B46: Итого сметная стоимость камеральных работ | J46: =SUM(J36:J45) -> 49456
B47: Удорожание сметной стоимости камеральных работы с районным коэффициентом 1,3 (Решение №130 по Сах.обл.) | J47: =ROUND(J46*0.3,0) -> 14837
B48: Удорожание сметной стоимости камеральных работы с льготным коэффициентом 1,25 (ОУ п.8 п "е") | J48: =J46*0.25 -> 12364
B49: Итого сметная стоимость камеральных работ | J49: =SUM(J46:J48) -> 76657
B50: Итого сметная стоимость работ | J50: =J49+J32 -> 279437.75
A52: III | B52: Регистрация изыскательских работ | F52: т.80п.5
B53: =J50 -> 279437.75 | F53: 3250+2% более 100000 | I53: =3250+(B53-100000)*0.02 -> 6838.755 | J53: =I53 -> 6838.755
B55: ИТОГО ПО СМЕТЕ | J55: =ROUND(J50+J53,0) -> 286277
B57: Итого по смете с учетом инфляционного коэффициента на IV квартал 2007 г. 1,99 | J57: =ROUND(J55*1.99,0) -> 569691
B58: НДС (18%) | J58: =J57*0.18 -> 102544.38
B60: ВСЕГО | J60: =(J57+J58) -> 672235.38

Sheet Геология
A1: Приложение 1
G2: к Ценовому предложению
A3: Смета № 2
A4: Наименование этапа и вида изыскательских работ
A5: Наименование объекта
A6: Стадия проектирования
A7: Наименование проектной (изыскательской) организации
A8: Наименование организации заказчика
A9: Адрес, местоположение объекта или земельного участка:
A10: № п.п | B10: Виды и объемы работ | F10: №№ ч., Гл., таб.СБЦ-99 | I10: Цена, руб | J10: Стоимость, руб
A11: I | B11: Полевые работы
B12: Инженерно-геологическая рекогносцировка | F12: т.9п.2
B13: 1 | C13: км | I13: 36 | J13: =ROUND(I13*B13,0) -> 36
B14: Колонковое бурение диаметром до 160 мм глубиной до 15 м в грунтах без устройства циркуляц. системы | F14: т.17п.1
B16: 200 | C16: м | D16: 3 кат | F16: К= | G16: 0.9 | H16: т.17прим. | I16: 42.6 | J16: =ROUND(I16*B16*G16,0) -> 7668
B17: Гидрогеологические наблюдения в скважинах при бурении диаметром до 160 мм, глубиной до 15 | F17: т.18п.1
B19: =B16 -> 200 | C19: м | F19: К= | G19: 0.6 | H19: гл.4п.8 | I19: 1.6 | J19: =ROUND(I19*B19*G19*G19,0) -> 115
B20: Крепление скважин трубами при бурении диаметром до 160 мм в интервале до 50 м | F20: т.18п.4
B22: =B16 -> 200 | C22: м | I22: 2.1 | J22: =ROUND(I22*B22,0) -> 420
B23: Отбор монолитов грунтов из скважин в интервале до 10 м | F23: т.57п.1
B25: 70 | C25: монолит | I25: 22.9 | J25: =ROUND(I25*B25,0) -> 1603
B26: Отбор монолитов грунтов из скважин в интервале свыше 10 м до 20 м | F26: т.57п.2
B28: 30 | C28: монолит | I28: 30.6 | J28: =ROUND(I28*B28,0) -> 918
B29: Статическое зондирование грунтов | F29: т.45
B30: 3 | C30: испытание | D30: до 10 м | F30: К= | G30: 1.1 | H30: т.45 прим.2 | I30: 128.3 | J30: =ROUND(B30*I30*G30,0) -> 423
B31: Внутренний транспорт | F31: т.4.п.3
B32: =SUM(J11:J30) -> 11183 | I32: 0.1125 | J32: =ROUND(B32*I32,0) -> 1258
B33: Организация и ликвидация работ | F33: ОУ, п.13 прим.1
B34: =B32+J32 -> 12441 | F34: К= | G34: 2.5 | H34: Кр.Север | I34: 0.06 | J34: =ROUND(B34*I34*G34,0) -> 1866
B35: Итого сметная стоимость полевых работ | J35: =SUM(J11:J34) -> 14307
B36: Удорожание сметной стоимости полевых работ с районным коэффициентом 1,4 (ОУ п.8 п "д") | J36: =ROUND(J35*0.4,0) -> 5723
B37: Удорожание сметной стоимости полевых работ с льготным коэффициентом 1,25 (ОУ п.8 п "е") | J37: =J35*0.25 -> 3576.75
B38: Итого сметная стоимость полевых работ | J38: =SUM(J35:J37) -> 23606.75
A40: II | B40: Лабораторные работы
B41: Глинистые грунты
B42: Полный комплекс определений физических свойств | F42: т.63п.9
B44: 20 | C44: образец | I44: 38.4 | J44: =ROUND(I44*B44,0) -> 768
B45: Полный комплекс определений физико-механических свойств | F45: т.63п.25
B47: 20 | C47: образец | F47: К= | G47: 1.3 | H47: т.63прим. | I47: 193 | J47: =ROUND(I47*B47*G47,0) -> 5018
B48: Предварительное уплотнение глинистых грунтов перед срезом | F48: т.62п.27
B50: 20 | C50: образец | I50: 14.4 | J50: =ROUND(I50*B50,0) -> 288
B51: Потери при прокаливании | F51: т.70п.13
B52: 20 | C52: образец | I52: 2.2 | J52: =ROUND(I52*B52,0) -> 44
B53: Песчаные грунты
B54: Полный комплекс определений физических свойств | F54: т.65п.1
B55: 80 | C55: образец | I55: 45.5 | J55: =ROUND(I55*B55,0) -> 3640
B56: Коэффициент фильтрации | F56: т.64п.5
B58: 20 | C58: образец | I58: 16.2 | J58: =ROUND(I58*B58,0) -> 324
B59: Итого сметная стоимость лабораторных работ | J59: =SUM(J42:J58) -> 10082
A61: III | B61: Камеральные работы
B62: Камеральная обработка инженерно-геологической рекогносцировки | F62: т.9п.2
B64: =B13 -> 1 | C64: км | I64: 23.4 | J64: =ROUND(I64*B64,0) -> 23
B65: Сбор, изучение и систематизация материалов изысканий прошлых лет | F65: т.78п.1,2
B67: 20 | C67: м | I67: 10.8 | J67: =ROUND(I67*B67,0) -> 216
B68: 10 | C68: 10 ц.з. | I68: 4.3 | J68: =ROUND(I68*B68,0) -> 43
B69: Камеральная обработка буровых и горнопроходческих работ с гидрогеол. наблюд. | F69: т.82п.2
B71: =B16 -> 200 | C71: м | F71: К= | G71: 1.3 | H71: т.82 прим.3 | I71: 10.7 | J71: =ROUND(I71*B71*G71,0) -> 2782
B72: Камеральная обработка полевого испытания грунтов статическим зондированием | F72: т.83п.1,2
B74: =B30 -> 3 | C74: испытание | D74: до 10 м | I74: 29.7 | J74: =ROUND(B74*I74,0) -> 89
B75: Камеральная обработка определений физико-механических свойств грунтов (пород): | F75: т.86п.1,2
B77: глинистых
B78: =SUM(J44:J52) -> 6118 | C78: % | I78: 0.2 | J78: =ROUND(I78*B78,0) -> 1224
B79: песчаных
B80: =SUM(J54:J58) -> 3964 | C80: % | I80: 0.15 | J80: =ROUND(I80*B80,0) -> 595
B81: Составление отчета | F81: т.87 п.1
B82: =SUM(J62:J80) -> 4972 | F82: К= | G82: 1.5 | H82: Метод. пособие. Письмо Госстоя №НЗ-2078/10 | I82: 0.25 | J82: =ROUND(I82*B82*G82,0) -> 1865
B83: Составление программы работ | F83: т.81 п.3
B84: 1 | C84: программа | I84: 800 | J84: =ROUND(I84*B84,0) -> 800
B86: Итого сметная стоимость камеральных работ | J86: =SUM(J63:J84) -> 7637
B87: Итого сметная стоимость лабораторных и камеральных работ | J87: =J86+J59 -> 17719
B88: Удорожание сметной стоимости лабораторных и камеральных работы с районным коэффициентом 1,3 (Решение №130 по Сах.обл.) | J88: =ROUND(J87*0.3,0) -> 5316
B89: Удорожание сметной стоимости лабораторных и камеральных работы с льготным коэффициентом 1,25 (ОУ п.8 п "е") | J89: =J87*0.25 -> 4429.75
B90: Итого сметная стоимость лабораторных и камеральных работ | J90: =SUM(J87:J89) -> 27464.75
B91: Итого сметная стоимость работ | J91: =J90+J38 -> 51071.5
A92: IV | B92: Регистрация изыскательских работ | F92: т.98п.4
B93: =J91 -> 51071.5 | F93: 295+2% свыше 10000 | I93: =295+(B93-10000)*0.02 -> 1116.43 | J93: =I93 -> 1116.43
B95: ИТОГО ПО СМЕТЕ | J95: =J91+J93 -> 52187.93
B97: Итого с учетом инфляционного коэффициента на IV квартал 2007 г. К= 22,72 | J97: =ROUND(J95*22.72,0) -> 1185710
B99: НДС (18%) | J99: =J97*0.18 -> 213427.8
B101: ВСЕГО | J101: =J97+J99 -> 1399137.8

Sheet Геология (геофизика)
A1: Приложение 1
G2: к Ценовому предложению
A3: Смета № 3
A4: Наименование этапа и вида изыскательских работ
A5: Наименование объекта
A6: Стадия проектирования
A7: Наименование проектной (изыскательской) организации
A8: Наименование организации заказчика
A9: Адрес, местоположение объекта или земельного участка:
A10: № п.п | B10: Виды и объемы работ | F10: №№ ч., Гл., таб.СБЦ | I10: Цена, руб | J10: Стоимость, руб
A11: I | B11: Полевые работы
B12: Измерение удельного сопротивления грунта | F12: СЦ-82, т.282
B14: 24 | C14: измерение | F14: К= | G14: 1.5 | H14: №22 Госстрой 01.03.90 | I14: 1.6 | J14: =ROUND(B14*G14*I14,0) -> 58
B15: Измерение наличия блуждающих токов "земля-земля" длительностью 10-15мин | F15: СЦ-82, т.283
B17: 6 | C17: измерение | F17: К= | G17: 1.21 | H17: №21-Д Госстрой 25.12.90 | I17: 2.3 | J17: =ROUND(B17*G17*I17*G18,0) -> 25
F18: К= | G18: 1.5 | H18: т.283 прим.
B19: Сейсморазведка СМР при возбуждении колебаний ударами кувалды | F19: СЦ-82, т.258 п.89
B21: 100 | C21: физ. наб. | F21: К= | G21: 1.21 | H21: №21-Д Госстрой 25.12.90 | I21: 20 | J21: =ROUND(B21*G21*I21*G22*1.25,0) -> 3328
F22: К= | G22: 1.1 | H22: т.257п.14
F23: К= | G23: 1.25 | H23: т.258прим.
B24: Разбивка точек УЭС на площадках изысканий | F24: СЦ-82, т.78п.2
B25: =B14/2 -> 12 | C25: точка | F25: К= | G25: 1.21 | H25: №21-Д Госстрой 25.12.90 | I25: 4.8 | J25: =ROUND(B25*G25*I25,0) -> 70
B26: Плановая разбивка и сейсмозондирования | F26: СЦ-82, т.278п.6
B28: 20 | C28: точка | F28: К= | G28: 1.21 | H28: №21-Д Госстрой 25.12.90 | I28: 4.6 | J28: =ROUND(B28*G28*I28,0) -> 111
B29: Внутренний траснспорт | F29: СЦ-82 т.4.п.3
B30: =SUM(J11:J28) -> 3592 | I30: 0.11 | J30: =ROUND(B30*I30,0) -> 395
B31: Организация и ликвидация | F31: СЦ-82, т.6 п.3
B32: =B30 -> 3592 | F32: К= | G32: 2.5 | H32: Кр.Север | I32: 0.11 | J32: =ROUND(B32*I32*G32,0) -> 988
B33: Итого сметная стоимость полевых работ | J33: =SUM(J11:J32) -> 4975
B34: Удорожание сметной стоимости полевых работ с районным коэффициентом 1,4 (ОУ п.8 п "д") | J34: =J33*0.4 -> 1990
B35: Удорожание сметной стоимости полевых работ с льготным коэффициентом 1,25 (ОУ п.8 п "е") | J35: =J33*0.25 -> 1243.75
B36: Итого сметная стоимость полевых работ | J36: =SUM(J33:J35) -> 8208.75
A37: II | B37: Камеральные работы
B38: Камеральная обработка электроразведки | F38: СБЦ-82, стр.288
B39: =J14+J17 -> 83 | F39: К= | G39: 1.21 | H39: №21-Д Госстрой 25.12.90 | I39: 0.3 | J39: =ROUND(I39*B39*G39*G41*G40,0) -> 36
F40: К= | G40: 1.05 | H40: СБЦ-82 ОУп.14
F41: К= | G41: 1.15 | H41: т.291прим.2
B42: Камеральная обработка материалов сейсморазведки, 2 типа волн | F42: СБЦ-82, т.291п.2
B43: =B21 -> 100 | C43: ф.н. | F43: К= | G43: 1.21 | H43: №21-Д Госстрой 25.12.90 | I43: 13 | J43: =ROUND(B43*I43*G43*G45*G44,0) -> 1899
F44: К= | G44: 1.05 | H44: СБЦ-82 ОУп.14
F45: К= | G45: 1.15 | H45: т.291прим.2
B46: Составление программы работ | F46: СБЦ-82, т.294п.3
B47: 1 | C47: программа | I47: 600 | J47: =ROUND(I47*B47,0) -> 600
B48: Составление отчета | F48: СБЦ-82, т.294п.10
B49: 1000+10% от | D49: =SUM(J39:J45) -> 1935 | F49: К= | G49: 1.21 | H49: №21-Д Госстрой 25.12.90 | I49: =(1000+0.1*D49)*G49*G50*G51 -> 2599.443 | J49: =ROUND((1000+0.1*D49)*G49*G50*G51,0) -> 2599
F50: К= | G50: 1.5 | H50: Метод. пособие. Письмо Госстоя №НЗ-2078/10
F51: К= | G51: 1.2 | H51: т.294прим.3
B52: Итого сметная стоимость камеральных работ | J52: =SUM(J39:J51) -> 5134
B53: Удорожание сметной стоимости камеральных работ с районным коэффициентом 1,3 (Решение №130 по Сах.обл.) | J53: =J52*0.3 -> 1540.2
B54: Удорожание сметной стоимости камеральных работ с льготным коэффициентом 1,25 (ОУ п.8 п "е") | J54: =ROUND(J52*0.25,0) -> 1284
B55: Итого сметная стоимость камеральных работ | J55: =SUM(J52:J54) -> 7958.2
B56: ИТОГО ПО СМЕТЕ | J56: =J36+J55 -> 16166.95
B58: Итого с учетом инфляционного коэффициента на IV квартал 2007 г. К= 22,72 | J58: =ROUND(J56*22.72,0) -> 367313
B60: НДС (18%) | J60: =J58*0.18 -> 66116.34
B62: ВСЕГО | J62: =J58+J60 -> 433429.34

Sheet Экология
D1: Приложение 4
D2: к Плану реализации проекта
A3: Смета №4
A4: Наименование этапа и вида изыскательских работ
A5: Наименование объекта
A6: Стадия проектирования
A7: Наименование проектной (изыскательской) организации
A8: Наименование организации заказчика
A9: Адрес, местоположение объекта или земельного участка:
A10: № п.п | B10: затраты | C10: ед.изм | D10: ставка, руб | E10: кол-во | F10: Стоимость (без учета НДС)
A11: I | B11: Полевых работ
B12: Мобилизация, демобилизация | F12: 110000
B13: Питание, проживание
B14: Затраты на питание в поле | C14: чел/день | D14: 500 | E14: 10 | F14: =D14*E14 -> 5000
B15: Итого | F15: =F14 -> 5000
B16: Оборудование
B17: Оборудование, лаб. посуда | F17: 1100
B18: Итого | F18: =F17 -> 1100
B19: Полевые работы
B20: Описание ландшафта, забор проб | C20: чел/день | D20: 2000 | E20: 10 | F20: =D20*E20 -> 20000
B21: Итого | F21: =F20 -> 20000
B22: Атмосферный воздух | C22: измерение | D22: 10000 | E22: 2 | F22: =D22*E22 -> 20000
B23: Вода | C23: проба | D23: 12000 | E23: 3 | F23: =D23*E23 -> 36000
B24: Почвы | C24: проба | D24: 11000 | E24: 3 | F24: =D24*E24 -> 33000
B25: Итого | F25: =SUM(F22:F24) -> 89000
A26: II | B26: Камеральные работы, работы с фондами и подготовку аналитического отчета
B27: Заработная плата
B28: Координатор работ | C28: чел/день | D28: 1500 | E28: 14 | F28: =D28*E28 -> 21000
B29: Специалист-почвовед | C29: чел/день | D29: 1200 | E29: 6 | F29: =D29*E29 -> 7200
B30: Технический редактор | C30: чел/день | D30: 1000 | E30: 14 | F30: =D30*E30 -> 14000
B31: Итого | F31: =SUM(F28:F30) -> 42200
B32: Расходные материалы | F32: 880
B33: Всего | F33: =F31+F32 -> 43080
B35: ИТОГО ПО СМЕТЕ | F35: =F12+F15+F18+F21+F25+F33 -> 268180
B36: НДС (18%) | F36: =F35*0.18 -> 48272.4
B37: ВСЕГО ПО СМЕТЕ | F37: =F35+F36 -> 316452.4

Sheet Метеорология
G1: Приложение 1
G2: к Ценовому предложению
A4: Смета № 5
A5: Наименование этапа и вида изыскательских работ | F5: Инженерно-метеорологические изыскания
A6: Наименование объекта
A7: Стадия проектирования
A8: Наименование проектной (изыскательской) организации
A9: Наименование организации заказчика
A10: Адрес, местоположение объекта или земельного участка:
A12: № п.п | B12: Виды и объемы работ | F12: №№ ч., Гл., таб.СБЦ-2000 | I12: Цена, руб | J12: Стоимость, руб
A13: I | B13: Камеральные метеорологические работы
B14: температура воздуха(среднемесячные данные) | F14: СБЦ-2000, т.67
B15: 20 | C15: год.ст. | I15: 1 | J15: =B15*I15 -> 20
B16: давление (среднемесячные данные) | F16: СБЦ-2000, т.67
B17: 20 | C17: год.ст. | I17: 1 | J17: =B17*I17 -> 20
B18: влажность воздуха(среднемесячные данные) | F18: СБЦ-2000, т.67
B19: 20 | C19: год.ст. | I19: 2.8 | J19: =B19*I19 -> 56
B20: ветер (среднемесячные данные) | F20: СБЦ-2000, т.67
B21: 20 | C21: год.ст. | I21: 7 | J21: =B21*I21 -> 140
B22: осадки(ежедневные данные) | F22: СБЦ-2000, т.67
B23: 20 | C23: год.ст. | I23: 6.7 | J23: =B23*I23 -> 134
B24: видимость(среднемесячные данные) | F24: СБЦ-2000, т.67
B25: 20 | C25: год.ст. | I25: 1 | J25: =B25*I25 -> 20
B26: атмосферные явл. (среднемесячные данные) | F26: СБЦ-2000, т.67
B27: 20 | C27: год.ст. | I27: 1 | J27: =B27*I27 -> 20
B28: снежный покров (декадные данные) | F28: СБЦ-2000, т.67
B29: 20 | C29: год.ст. | I29: 1.5 | J29: =B29*I29 -> 30
B30: температура почвы(среднемесячная) | F30: СБЦ-2000, т.67
B31: 20 | C31: год.ст. | I31: 7.2 | J31: =B31*I31 -> 144
B32: длительность действия ветра от 10 м/с | F32: СБЦ-2000, т.68
B33: 2 | C33: расчет | I33: 57 | J33: =B33*I33 -> 114
B34: максимальное обледенение проводов | F34: СБЦ-2000, т.68
B35: 2 | C35: расчет | I35: 75 | J35: =B35*I35 -> 150
B36: суточные максимумы осадков | F36: СБЦ-2000, т.68
B37: 2 | C37: расчет | I37: 38 | J37: =B37*I37 -> 76
B38: розы ветров | F38: СБЦ-2000, т.68
B39: 15 | C39: расчет | I39: 116 | J39: =B39*I39 -> 1740
B40: составление климатической записки | F40: СБЦ-2000, т.69
B41: 1 | C41: записка | I41: 486 | J41: =B41*I41 -> 486
B42: загрязнение атмосферы | F42: т.67
B44: 8 | C44: год.станция | H44: т.67,§23 | I44: 8.2 | J44: =B44*I44 -> 65.6
B45: расчёт скорости ветра 5% обеспеченности | F45: т.68
B47: 8 | C47: год.станция | H47: т.68,§12 | I47: 280 | J47: =B47*I47 -> 2240
B48: температура почвы(среднемесячные данные) | F48: т.67
B50: 8 | C50: год.станция | H50: т.67,§18 | I50: 7.2 | J50: =B50*I50 -> 57.6
B51: глубина промерзания грунта | F51: т.67
B52: Итого сметная стоимость камеральных работ | J52: =SUM(J13:J51) -> 5513.2
B53: Удорожание сметной стоимости лабораторных и камеральных работы с районным коэффициентом 1,3 (Решение №130 по Сах.обл.) | J53: =ROUND(J52*0.3,0) -> 1654
B54: Удорожание сметной стоимости лабораторных и камеральных работы с льготным коэффициентом 1,25 (ОУ п.8 п "е") | J54: =J52*0.25 -> 1378.3
B56: ИТОГО ПО СМЕТЕ | J56: =SUM(J52:J55) -> 8545.5
B57: Итого с учетом инфляционного коэффициента на IV квартал 2007 г. К= 22,72 | J57: =ROUND(J56*22.72,0) -> 194154
B58: НДС (18%) | J58: =J57*0.18 -> 34947.72
B59: ВСЕГО | J59: =J58+J57 -> 229101.72

Sheet Сводная
A1: Приложение 1
A2: к Ценовому предложению
A3: СВОДНАЯ СМЕТА
A4: на выполнение инженерых изысканий по объекту
A5: Рай
B6: Наименование проектной (изыскательской) организации: Мы
B7: Наименование организации заказчика: Они
A9: №№ п/п | B9: Наименование этапа и вида изыскательских работ | C9: Ссылка на сметы | D9: Стоимость работ в рублях
D10: Стоимость работ в текущих ценах | E10: НДС | F10: Стоимость с НДС
A11: 1 | B11: Инженерно-геодезические изыскания | C11: Смета № 1 | D11: =Геодезия!J57 -> 569691 | E11: =D11*0.18 -> 102544.38 | F11: =D11+E11 -> 672235.38
A12: 2 | B12: Инженерно-геологические изыскания | C12: Смета № 2 | D12: =Геология!J97 -> 1185710 | E12: =D12*0.18 -> 213427.8 | F12: =D12+E12 -> 1399137.8
A13: 3 | B13: Инженерно-геологические (геофизические) изыскания | C13: Смета № 3 | D13: ='Геология (геофизика)'!J58 -> 367313 | E13: =D13*0.18 -> 66116.34 | F13: =D13+E13 -> 433429.34
A14: 4 | B14: Инженерно-экологические изыскания | C14: Смета № 4 | D14: =Экология!F35 -> 268180 | E14: =D14*0.18 -> 48272.4 | F14: =D14+E14 -> 316452.4
A15: 5 | B15: Инженерно-метеорологические изыскания | C15: Смета № 5 | D15: =Метеорология!J57 -> 194154 | E15: =D15*0.18 -> 34947.72 | F15: =D15+E15 -> 229101.72
B16: ИТОГО по сметам: | D16: =SUM(D11:D15) -> 2585048 | E16: =SUM(E11:E15) -> 465308.64 | F16: =SUM(F11:F15) -> 3050356.64
F82: т.5 п.2
